[Event "28th Hit Open-A 2024"]
[Site "Nova Gorica"]
[Date "2024.01.28"]
[Round "4.16"]
[White "Jalovec, Igor"]
[Black "Siraj, Svit"]
[Result "1/2-1/2"]
[ECO "C52"]
[WhiteElo "1703"]
[BlackElo "2182"]
[Annotator "RC"]
[PlyCount "121"]
[EventDate "2024.01.22"]
[EventType "swiss"]
[EventCountry "SLO"]
[SourceTitle "playchess.com"]
[Source "ChessBase"]
[SourceQuality "1"]
[TimeControl "5400+30"]

1. e4 {[%emt 0:00:24]} e5 {[%emt 0:00:07]} 2. Nf3 {[%emt 0:00:11]} Nc6 {[%emt 0:00:04]} 3. Bc4 {[%emt 0:00:11]} Bc5 {[%emt 0:00:38]} 4. b4 {[%emt 0:00:08]} Bxb4 {[%emt 0:00:43]} 5. c3 {[%emt 0:00:07]} Ba5 {[%emt 0:00:12]} 6. d4 {[%emt 0:00:26]} exd4 {[%emt 0:02:00]} 7. Qb3 {[%emt 0:00:57]} Qe7 {[%emt 0:01:33]} 8. O-O {[%emt 0:00:51]} d6 {[%emt 0:04:20]} 9. cxd4 {[%emt 0:07:50]} Bb6 {[%emt 0:03:01]} 10. e5 {[%emt 0:15:50]} Nxd4 {[%emt 0:05:59]} 11. Nxd4 {[%emt 0:04:09]} Bxd4 {[%emt 0:01:17]} 12. exd6 {[%emt 0:01:31]} Qf6 {[%emt 0:20:23]} 13. Re1+ {[%emt 0:17:04]} Kf8 {[%emt 0:05:05]} 14. Be3 {[%emt 0:10:32]} Bxa1 {[%emt 0:06:15]} 15. d7 {[%emt 0:05:46]} Bxd7 {[%emt 0:05:20]} 16. Bc5+ {[%emt 0:07:47]} Ne7 {[%emt 0:00:06]} 17. Bxe7+ {[%emt 0:02:38]} Qxe7 {[%emt 0:00:11]} 18. Rxe7 {[%emt 0:00:11]} Kxe7 {[%emt 0:00:04]} 19. Qb4+ {[%emt 0:07:00]} Kf6 {[%emt 0:07:51]} 20. Nc3 {[%emt 0:00:28]} Bxc3 {[%emt 0:13:23]} 21. Qxc3+ {[%emt 0:00:03]} Ke7 {[%emt 0:00:14]} 22. Qe5+ {[%emt 0:01:11]} Be6 {[%emt 0:13:26]} 23. Bxe6 {[%emt 0:01:37]} fxe6 {[%emt 0:00:07]} 24. Qxc7+ {[%emt 0:00:07]} Kf6 {[%emt 0:00:13]} 25. Qxb7 {[%emt 0:00:05]} Rhb8 {[%emt 0:01:32]} 26. Qe4 {[%emt 0:00:27]} h6 {[%emt 0:00:34]} 27. g3 {[%emt 0:00:07]} Rd8 {[%emt 0:00:53]} 28. Qf4+ {[%emt 0:00:54]} Ke7 {[%emt 0:00:19]} 29. Kg2 {[%emt 0:00:24]} Rd6 {[%emt 0:02:47]} 30. Qe5 {[%emt 0:00:21]} Rg8 {[%emt 0:00:47]} 31. Qc5 {[%emt 0:01:15]} a6 {[%emt 0:00:47]} 32. Qc7+ {[%emt 0:00:25]} Rd7 {[%emt 0:00:05]} 33. Qc6 {[%emt 0:00:31]} Rd6 {[%emt 0:01:07]} 34. Qc7+ {[%emt 0:00:54]} Rd7 {[%emt 0:00:10]} 35. Qe5 {[%emt 0:00:07]} Rd6 {[%emt 0:02:54]} 36. g4 {[%emt 0:02:22]} Kd7 {[%emt 0:02:12]} 37. h4 {[%emt 0:00:44]} Rd5 {[%emt 0:01:01]} 38. Qb2 {[%emt 0:01:09]} Kc7 {[%emt 0:00:35]} 39. Qa3 {[%emt 0:00:27]} Rd6 {[%emt 0:00:44]} 40. Qc5+ {[%emt 0:00:20]} Rc6 {[%emt 0:00:44]} 41. Qe7+ {[%emt 0:00:33]} Kb6 {[%emt 0:00:34]} 42. Qf7 {[%emt 0:00:36]} Rcc8 {[%emt 0:00:10]} 43. Qxe6+ {[%emt 0:00:07]} Kb7 {[%emt 0:00:41]} 44. Qf7+ {[%emt 0:00:54]} Kb6 {[%emt 0:00:30]} 45. Kg3 {[%emt 0:00:27]} Rc3+ {[%emt 0:00:34]} 46. f3 {[%emt 0:00:22]} Rcc8 {[%emt 0:00:04]} 47. g5 {[%emt 0:00:37]} hxg5 {[%emt 0:00:07]} 48. hxg5 {[%emt 0:00:12]} g6 {[%emt 0:00:06]} 49. Qe6+ {[%emt 0:00:25]} Kb7 {[%emt 0:00:26]} 50. a4 {[%emt 0:00:07]} Rb8 {[%emt 0:00:17]} 51. a5 {[%emt 0:00:19]} Ka7 {[%emt 0:00:10]} 52. Kg4 {[%emt 0:01:25]} Rb4+ {[%emt 0:00:39]} 53. Kg3 {[%emt 0:00:14]} Rg7 {[%emt 0:01:20]} 54. Qd6 {[%emt 0:00:55]} Rbb7 {[%emt 0:00:12]} 55. Kg4 {[%emt 0:01:38]} Rg8 {[%emt 0:00:28]} 56. f4 {[%emt 0:00:25]} Rgg7 {[%emt 0:00:09]} 57. Qc5+ {[%emt 0:04:10]} Ka8 {[%emt 0:00:32]} 58. f5 {[%emt 0:02:55]} gxf5+ {[%emt 0:00:14]} 59. Qxf5 {[%emt 0:00:09]} Rb4+ {[%emt 0:00:24]} 60. Kh5 {[%emt 0:00:50]} Rxg5+ {[%emt 0:00:16]} 61. Kxg5 {[%emt 0:00:21]} 1/2-1/2

[Event "28th Hit Open-A 2024"]
[Site "Nova Gorica"]
[Date "2024.01.28"]
[Round "4.17"]
[White "Ceschia, Ivano"]
[Black "Zlatanovic, Srdjan"]
[Result "1-0"]
[ECO "B28"]
[WhiteElo "2183"]
[BlackElo "1675"]
[Annotator "NA RC"]
[PlyCount "59"]
[EventDate "2024.01.22"]
[EventType "swiss"]
[EventCountry "SLO"]
[SourceTitle "playchess.com"]
[Source "ChessBase"]
[SourceQuality "1"]
[TimeControl "5400+30"]

1. e4 {[%emt 0:03:25]} c5 {[%emt 0:00:27]} 2. Nf3 {[%emt 0:00:07]} a6 {[%emt 0:00:14]} 3. d4 {[%emt 0:02:21]} cxd4 {[%emt 0:00:13]} 4. Qxd4 {[%emt 0:00:07]} Nc6 {[%emt 0:02:42]} 5. Qe3 {[%emt 0:00:06]} d6 {[%emt 0:00:24]} 6. h3 {[%emt 0:00:36]} Qc7 {[%emt 0:00:15]} 7. c4 {[%emt 0:01:53]} g6 {[%emt 0:01:08]} 8. Be2 {[%emt 0:01:09]} Bg7 {[%emt 0:00:14]} 9. O-O {[%emt 0:00:28]} Nf6 {[%emt 0:01:39]} 10. Nc3 {[%emt 0:00:16]} Nd7 {[%emt 0:01:00]} 11. b3 {[%emt 0:09:21]} Nde5 {[%emt 0:19:19]} 12. Nxe5 {[%emt 0:02:16]} Bxe5 {[%emt 0:02:50]} 13. Bb2 {[%emt 0:01:02]} Qa5 {[%emt 0:12:15]} 14. Rfd1 {[%emt 0:06:12]} g5 {[%emt 0:04:08]} 15. Rd5 {[%emt 0:02:25]} Qb4 {[%emt 0:03:59]} 16. Rxe5 {[%emt 0:01:12]} dxe5 {[%emt 0:10:43]} 17. Nd5 {[%emt 0:00:36]} Qd6 {[%emt 0:01:04]} 18. c5 {[%emt 0:00:19]} Qb8 {[%emt 0:00:34]} 19. Qxg5 {[%emt 0:00:56]} Be6 {[%emt 0:01:12]} 20. Nb6 {[%emt 0:06:55]} Ra7 {[%emt 0:05:49]} 21. Bg4 {[%emt 0:00:23]} h6 {[%emt 0:08:02]} 22. Qg7 {[%emt 0:00:25]} Rf8 {[%emt 0:00:05]} 23. Bxe6 {[%emt 0:05:23]} fxe6 {[%emt 0:00:02]} 24. Rd1 {[%emt 0:04:46]} Nd4 {[%emt 0:00:55]} 25. Bxd4 {[%emt 0:00:07]} exd4 {[%emt 0:00:10]} 26. Qg6+ {[%emt 0:00:14]} Rf7 {[%emt 0:01:38]} 27. Qxe6 {[%emt 0:00:14]} Qc7 {[%emt 0:01:39]} 28. Rxd4 {[%emt 0:03:37]} Qc6 {[%emt 0:07:38]} 29. Rd6 {[%emt 0:00:12]} Qxc5 {[%emt 0:00:42]} 30. Rd8+ {[%emt 0:00:11]} 1-0

[Event "28th Hit Open-A 2024"]
[Site "Nova Gorica"]
[Date "2024.01.28"]
[Round "4.18"]
[White "Mazzi, Leonardo"]
[Black "Kozlovic, Jernej"]
[Result "0-1"]
[ECO "B13"]
[WhiteElo "1647"]
[BlackElo "2174"]
[Annotator "TA"]
[PlyCount "118"]
[EventDate "2024.01.22"]
[EventType "swiss"]
[EventCountry "SLO"]
[SourceTitle "playchess.com"]
[Source "ChessBase"]
[SourceQuality "1"]
[TimeControl "5400+30"]

{[%evp 24,118,22,25,27,16,22,0,36,0,0,0,0,0,10,0,38,29,24,-8,-11,-12,-18,0,-7,-12,-9,-12,-13,-18,-14,-35,-17,-22,-21,-72,-34,-61,-25,-23,-25,-111,-31,-31,-30,-71,-29,-29,-25,-27,-27,-77,-77,-133,-135,-195,-189,-206,-211,-236,-113,-250,-242,-309,-295,-294,-292,-293,-285,-298,-288,-329,-320,-29974,-29975,-29975,-29976,-29976,-29977,-29977,-29979,-29981,-29982,-29982,-29983,-29983,-29983,-29983,-29984,-29984,-29985,-29985,-29986,-29990,-29991,-29992,-29993]} 1. e4 {[%emt 0:00:11]} c6 {[%emt 0:00:14]} 2. d4 {[%emt 0:00:04]} d5 {[%emt 0:00:23]} 3. exd5 {[%emt 0:00:15]} cxd5 {[%emt 0:00:17]} 4. Bd3 {[%emt 0:00:05]} Nc6 {[%emt 0:00:18]} 5. c3 {[%emt 0:00:04]} Nf6 {[%emt 0:00:17]} 6. Bf4 {[%emt 0:00:15]} Bg4 {[%emt 0:00:33]} 7. Qb3 {[%emt 0:00:16]} Qd7 {[%emt 0:00:30]} 8. Nd2 {[%emt 0:00:27]} e6 {[%emt 0:00:13]} 9. Ngf3 {[%emt 0:00:16]} Bd6 {[%emt 0:00:21]} 10. Bxd6 {[%emt 0:00:14]} Qxd6 {[%emt 0:00:22]} 11. O-O {[%emt 0:00:13]} O-O {[%emt 0:00:15]} 12. Rae1 {[%emt 0:00:13]} Bxf3 {[%emt 0:00:37]} 13. Nxf3 {[%emt 0:00:10][%cal Of3e5]} Qc7 {[%emt 0:04:09]} 14. Qd1 {[%emt 0:03:24]} Rab8 {[%emt 0:01:34]} 15. Re3 {[%emt 0:01:46]} g6 {[%emt 0:04:17] The position is equal.} 16. Ne5 {[%emt 0:01:23]} Nxe5 {[%emt 0:00:22]} 17. dxe5 {[%emt 0:00:48]} Nd7 {[%emt 0:00:16]} 18. Rfe1 {[%emt 0:01:07]} Rfd8 {[%emt 0:08:01]} 19. Qg4 {[%emt 0:04:18]} Nf8 {[%emt 0:01:27][%cal Od5d4]} 20. h4 {[%emt 0:01:14]} Qb6 {[%emt 0:08:03]} 21. b3 {[%emt 0:09:54]} d4 {[%emt 0:00:28]} 22. cxd4 {[%emt 0:00:24]} Rxd4 {[%emt 0:01:24]} 23. Qg5 {[%emt 0:04:21]} Qd8 {[%emt 0:09:55]} 24. Qxd8 {[%emt 0:06:11]} (24. Be4 {seems wilder.} b5 25. Qf4 Qa5 26. h5) 24... Rbxd8 {[%emt 0:02:44]} 25. Be4 {[%emt 0:00:50]} b6 {[%emt 0:01:14]} 26. g3 {[%emt 0:01:59]} Nd7 {[%emt 0:00:52]} 27. Bf3 {[%emt 0:06:50]} Nc5 {[%emt 0:02:25]} 28. Kf1 {[%emt 0:02:29]} a5 {[%emt 0:00:48]} 29. Rc1 {[%emt 0:08:49]} (29. a3 $11) 29... Kg7 {[%emt 0:06:07]} 30. Rc2 {[%emt 0:01:33]} h6 {[%emt 0:01:08]} 31. h5 {[%emt 0:07:21]} g5 {[%emt 0:02:48]} 32. Bc6 {[%emt 0:01:58]} (32. a3 $11) 32... Kf8 {[%emt 0:03:55]} (32... Rd1+ $1 $17 33. Ke2 Ra1) 33. Bb5 {[%emt 0:02:43]} Ke7 {[%emt 0:04:56]} 34. Rce2 {[%emt 0:01:18]} Rd1+ {[%emt 0:02:24]} 35. Re1 {[%emt 0:01:12]} R1d2 {[%emt 0:00:57]} 36. R1e2 {[%emt 0:00:34]} R2d4 {[%emt 0:00:13]} 37. Re1 {[%emt 0:01:16]} (37. f3 $11 {keeps the balance.}) 37... g4 $1 $17 {[%emt 0:02:54]} 38. R1e2 {[%emt 0:00:50] [#]} ({Better is} 38. Be2) 38... Rg8 $1 {[%emt 0:00:33] Black is more active.} 39. Rb2 {[%emt 0:03:25]} (39. f4 $17) 39... Rg5 $19 {[%emt 0:00:50]} 40. a3 {[%emt 0:00:50]} Rxh5 {[%emt 0:02:45] And now ...Rd1+ would win.} 41. Kg2 {[%emt 0:02:52] [#]} Ne4 {[%emt 0:03:26]} (41... Rd1 $1 $19 {[%cal Rd1h1] and Black stays clearly on top. ( -> ...Rdh1)} 42. Bf1 Nd7) 42. Rc2 {[%emt 0:02:13] This costs White the game.} (42. Be2 $17 {keeps fighting.}) 42... Rxe5 {[%emt 0:03:01]} 43. Rc7+ {[%emt 0:00:35]} Kd8 {[%emt 0:00:31]} 44. Rc4 {[%emt 0:01:42]} Rxc4 {[%emt 0:00:41]} 45. Bxc4 {[%emt 0:00:03][%mdl 4096] Endgame. KRB-KRN} Ke7 {[%emt 0:01:04]} 46. Bd3 {[%emt 0:00:16]} f5 {[%emt 0:00:09]} 47. Bxe4 {[%emt 0:00:11]} Rxe4 {[%emt 0:00:27]} 48. Rxe4 {[%emt 0:00:06]} (48. Rc3 $19 Re5 49. Kg1) 48... fxe4 {[%emt 0:00:10] KP-KP. Black mates.} 49. Kf1 {[%emt 0:00:11]} Kd6 {[%emt 0:00:10]} 50. Ke2 {[%emt 0:00:08]} Ke5 {[%emt 0:00:10]} 51. Ke3 {[%emt 0:00:07]} b5 {[%emt 0:00:04]} 52. b4 {[%emt 0:00:27]} a4 {[%emt 0:00:10]} 53. Ke2 {[%emt 0:00:13]} Kd4 {[%emt 0:00:01]} 54. Kd2 {[%emt 0:00:01]} Kc4 {[%emt 0:00:21]} 55. Ke3 {[%emt 0:01:36]} Kb3 {[%emt 0:00:12]} 56. Kd4 {[%emt 0:01:01]} Kxa3 {[%emt 0:00:42]} 57. Kc5 {[%emt 0:00:25]} Kb3 {[%emt 0:00:06]} 58. f4 {[%emt 0:00:32]} exf3 {[%emt 0:00:23]} 59. Kd4 {[%emt 0:02:05]} f2 {[%emt 0:00:24] Weighted Error Value: White=0.36/Black=0.14 (very precise) .  Mistake:       	White=7     	Black=2      Inaccurate:     	White=4     	Black=5      OK:         	White=8     	Black=11     Best:        	---       	Black=3      Strong:       	---       	Black=2} 0-1

[Event "28th Hit Open-A 2024"]
[Site "Nova Gorica"]
[Date "2024.01.28"]
[Round "4.19"]
[White "Debevec, Blaz"]
[Black "Gricnik, Tine"]
[Result "1-0"]
[ECO "C14"]
[WhiteElo "2077"]
[BlackElo "1758"]
[Annotator "NA RC"]
[PlyCount "51"]
[EventDate "2024.01.22"]
[EventType "swiss"]
[EventCountry "SLO"]
[SourceTitle "playchess.com"]
[Source "ChessBase"]
[SourceQuality "1"]
[TimeControl "5400+30"]

1. e4 {[%emt 0:00:03]} e6 {[%emt 0:00:07]} 2. d4 {[%emt 0:00:15]} d5 {[%emt 0:00:05]} 3. Nc3 {[%emt 0:00:06]} Nf6 {[%emt 0:01:35]} 4. Bg5 {[%emt 0:00:46]} Be7 {[%emt 0:00:08]} 5. e5 {[%emt 0:00:17]} Nfd7 {[%emt 0:00:06]} 6. h4 {[%emt 0:00:19]} Bxg5 {[%emt 0:03:03]} 7. hxg5 {[%emt 0:00:06]} Qxg5 {[%emt 0:00:31]} 8. Nh3 {[%emt 0:00:36]} Qe7 {[%emt 0:01:46]} 9. Qg4 {[%emt 0:01:08]} f6 {[%emt 0:04:32]} 10. f4 {[%emt 0:01:16]} fxe5 {[%emt 0:01:34]} 11. fxe5 {[%emt 0:00:21]} h5 {[%emt 0:06:31]} 12. Qg3 {[%emt 0:03:55]} h4 {[%emt 0:16:09]} 13. Qg4 {[%emt 0:02:37]} Rg8 {[%emt 0:05:07]} 14. Ng5 {[%emt 0:01:38]} Nf8 {[%emt 0:05:44]} 15. Bd3 {[%emt 0:01:02]} Qb4 {[%emt 0:03:28]} 16. O-O-O {[%emt 0:01:10]} Bd7 {[%emt 0:03:50]} 17. a3 {[%emt 0:01:07]} Qb6 {[%emt 0:01:34]} 18. Nh7 {[%emt 0:05:34]} Nc6 {[%emt 0:05:27]} 19. Nxf8 {[%emt 0:01:46]} Rxf8 {[%emt 0:00:28]} 20. Bg6+ {[%emt 0:01:23]} Kd8 {[%emt 0:00:32]} 21. Rhf1 {[%emt 0:00:47]} Rh8 {[%emt 0:02:21]} 22. Rf7 {[%emt 0:01:17]} Kc8 {[%emt 0:02:00]} 23. Nxd5 {[%emt 0:02:34]} Qb5 {[%emt 0:02:31]} 24. Nc3 {[%emt 0:04:57]} Qc4 {[%emt 0:03:24]} 25. Qf4 {[%emt 0:01:05]} b6 {[%emt 0:00:49]} 26. Bd3 {[%emt 0:00:14]} 1-0

[Event "28th Hit Open-A 2024"]
[Site "Nova Gorica"]
[Date "2024.01.28"]
[Round "4.20"]
[White "Doric, Darko"]
[Black "Caruso, Augusto"]
[Result "1-0"]
[ECO "D04"]
[WhiteElo "2456"]
[BlackElo "2159"]
[Annotator "TA"]
[PlyCount "83"]
[EventDate "2024.01.22"]
[EventType "swiss"]
[EventCountry "SLO"]
[SourceTitle "playchess.com"]
[Source "ChessBase"]
[SourceQuality "1"]
[TimeControl "5400+30"]

{[%evp 16,83,0,-17,-30,-18,0,-30,-18,-21,-14,-4,-3,-4,-11,-8,-15,-8,-1,-13,12,10,5,6,8,0,14,21,22,22,31,30,25,19,61,56,61,8,40,35,117,100,172,171,203,135,134,131,237,245,223,231,410,402,396,401,417,414,410,351,666,418,1123,1117,2156,986,29951,29954,4935,3436]} 1. d4 {[%emt 0:00:03]} d5 {[%emt 0:03:24]} 2. Nf3 {[%emt 0:01:20]} Nf6 {[%emt 0:00:19]} 3. e3 {[%emt 0:00:39][%cal Be2e3,Be3d4][%mdl 32]} g6 {[%emt 0:03:01]} 4. b3 {[%emt 0:01:27]} Bg7 {[%emt 0:01:06]} 5. Bd3 {[%emt 0:00:13]} c5 {[%emt 0:02:15]} 6. Bb2 {[%emt 0:01:06]} Nc6 {[%emt 0:03:06]} 7. O-O {[%emt 0:01:41]} cxd4 {[%emt 0:04:31]} 8. exd4 {[%emt 0:00:10]} O-O {[%emt 0:00:15]} 9. a3 {[%emt 0:00:21]} Bg4 {[%emt 0:07:11]} 10. Nbd2 {[%emt 0:01:12]} e5 {[%emt 0:21:21]} 11. dxe5 {[%emt 0:00:26]} Nd7 {[%emt 0:00:20][%cal Rd7e5] Black has an edge.} 12. h3 {[%emt 0:05:13]} Ndxe5 {[%emt 0:08:26]} (12... Ncxe5 {looks sharper.} 13. hxg4 Nxf3+ 14. Qxf3 Bxb2 15. Rab1 Ne5) 13. Bxe5 {[%emt 0:03:09]} Bxf3 {[%emt 0:01:45]} 14. Nxf3 {[%emt 0:00:18]} Nxe5 {[%emt 0:00:06]} 15. Nxe5 {[%emt 0:00:39]} Bxe5 {[%emt 0:00:01]} 16. Rb1 {[%emt 0:00:16] White is weak on the dark squares} Qf6 {[%emt 0:04:04]} 17. g3 {[%emt 0:02:09]} Qd6 {[%emt 0:08:37]} 18. Qf3 {[%emt 0:00:42]} Rad8 {[%emt 0:00:48]} 19. a4 {[%emt 0:01:01]} Qf6 {[%emt 0:02:59]} 20. Qg2 {[%emt 0:00:39]} Rd6 {[%emt 0:01:58]} 21. Rbe1 {[%emt 0:02:10]} Bd4 {[%emt 0:02:06]} 22. Kh2 {[%emt 0:01:00]} h5 {[%emt 0:03:31]} 23. h4 {[%emt 0:01:28]} Rfd8 {[%emt 0:02:54]} 24. f4 {[%emt 0:00:24]} Re6 {[%emt 0:02:17]} 25. Rxe6 {[%emt 0:05:50]} fxe6 {[%emt 0:00:07]} 26. Kh3 {[%emt 0:06:21]} (26. c4 $14) 26... Kf7 {[%emt 0:06:42][%cal Bg8f7,Bf7g7,Bg7g6][%mdl 32]} 27. c4 {[%emt 0:05:03]} Bc5 {[%emt 0:04:35]} ({Better is} 27... Kg7 $14) 28. cxd5 {[%emt 0:02:59]} exd5 {[%emt 0:00:26]} (28... Kg7 $16) 29. Re1 $18 {[%emt 0:02:11]} Bd4 {[%emt 0:04:35]} 30. Qf3 {[%emt 0:00:57] [#] Strongly threatening f5.} Kg7 {[%emt 0:00:32]} 31. f5 {[%emt 0:00:27] Black must now prevent Re6.} gxf5 {[%emt 0:02:02]} (31... Be5 $16 32. Kg2 gxf5 33. Qxh5 (33. Bxf5 Rf8 $18) 33... Rf8) 32. Qxh5 {[%emt 0:00:15]} Rf8 {[%emt 0:00:28]} 33. Rf1 {[%emt 0:05:25][%cal Rf1f5]} Qg6 {[%emt 0:00:30] [#]} (33... Qh6 {is a better defense.} 34. Qxh6+ (34. Rxf5 Qxh5 35. Rxh5 Rf3 $18) 34... Kxh6 35. Bxf5 (35. Rxf5 Rxf5 36. Bxf5 b6 $18) 35... Re8) 34. Qxg6+ $1 {[%emt 0:01:36]} (34. Rxf5 Qxh5 35. Rxh5 Rf3 $18) 34... Kxg6 {[%emt 0:00:00][%mdl 4096] Endgame. KRB-KRB} 35. g4 {[%emt 0:00:17][%cal Bg3g4,Bg4g5][%mdl 32]} Kg7 {[%emt 0:00:56]} 36. Bxf5 {[%emt 0:00:32]} (36. gxf5 Re8 37. Kg4 Rg8 $16) 36... Be3 {[%emt 0:00:31]} 37. g5 {[%emt 0:00:25] Wards off Rf6} d4 $2 {[%emt 0:00:22]} (37... a6 38. Kg4 Kh8) 38. Kg4 {[%emt 0:00:12]} Rd8 {[%emt 0:00:15]} (38... d3 $142 39. Bxd3 Rd8) 39. Bd3 {[%emt 0:00:56] h5 is the strong threat.} Rd5 {[%emt 0:00:44]} 40. Rf5 {[%emt 0:00:07]} (40. Bc4 $142) 40... Rd8 {[%emt 0:00:38]} 41. h5 {[%emt 0:00:11][%cal Bh4h5,Bh5h6][%mdl 32]} Kh8 {[%emt 0:00:16]} 42. h6 {[%emt 0:00:27] Weighted Error Value: White=0.18 (very precise) /Black=0.60.  Mistake:       	White=1     	Black=6      Inaccurate:     	White=2     	Black=3      OK:         	White=12    	Black=7      Best:        	White=3     	Black=1      Strong:       	White=1     	---} 1-0

[Event "28th Hit Open-A 2024"]
[Site "Nova Gorica"]
[Date "2024.01.28"]
[Round "4.21"]
[White "Cvitan, Ognjen"]
[Black "Markocic, Tine"]
[Result "1-0"]
[ECO "D37"]
[WhiteElo "2422"]
[BlackElo "2055"]
[Annotator "TA"]
[PlyCount "71"]
[EventDate "2024.01.22"]
[EventType "swiss"]
[EventCountry "SLO"]
[SourceTitle "playchess.com"]
[Source "ChessBase"]
[SourceQuality "1"]
[TimeControl "5400+30"]

{[%evp 9,71,21,24,19,35,0,9,17,20,13,8,0,2,3,9,18,15,12,11,0,13,27,114,27,13,19,20,25,8,22,18,5,18,11,54,62,48,0,0,0,0,0,0,0,0,0,145,160,194,199,218,215,199,195,198,194,536,541,539,516,1110,712,677,662]} 1. c4 {[%emt 0:00:29]} e6 {[%emt 0:00:50]} 2. Nf3 {[%emt 0:04:38]} d5 {[%emt 0:04:50]} 3. d4 {[%emt 0:02:11]} Nf6 {[%emt 0:00:32]} 4. Nc3 {[%emt 0:01:26]} a6 {[%emt 0:01:41]} 5. cxd5 {[%emt 0:03:59]} exd5 {[%emt 0:00:07]} 6. Bg5 {[%emt 0:00:25]} Be6 {[%emt 0:10:45]} 7. Bxf6 {[%emt 0:06:41]} Qxf6 {[%emt 0:04:15]} 8. Qb3 {[%emt 0:00:44] The position is equal.} Ra7 {[%emt 0:01:22]} 9. a3 {[%emt 0:02:35]} Qd8 {[%emt 0:04:01]} 10. h4 {[%emt 0:10:15]} Be7 {[%emt 0:06:32] Wards off Ng5} 11. Qc2 {[%emt 0:04:55]} h6 {[%emt 0:04:52]} 12. e4 {[%emt 0:02:28]} dxe4 {[%emt 0:10:35]} 13. Qxe4 {[%emt 0:01:33]} c6 {[%emt 0:11:13]} 14. O-O-O {[%emt 0:08:24]} b5 {[%emt 0:00:00]} 15. Ne5 {[%emt 0:00:30][%cal Of1d3]} O-O {[%emt 0:08:03]} (15... Qd6 $11 {remains equal.}) 16. Nxc6 {[%emt 0:03:12] White is much more active.} (16. Bd3 $1 $16 {[%csl Gd3][%cal Re4h7]} f5 17. Qe3) 16... Nxc6 $11 {[%emt 0:00:06]} 17. d5 $1 {[%emt 0:00:06]} Qc8 {[%emt 0:08:46] ...Bf5 would now be deadly.} 18. Bd3 {[%emt 0:01:25]} (18. dxc6 Rc7 19. Bd3 f5 $17 (19... Rxc6 20. Qh7#)) 18... g6 $1 {[%emt 0:00:58][%cal Ob5b4] Strongly threatening ...b4!} 19. dxe6 {[%emt 0:00:06]} ({But not} 19. dxc6 Rc7 20. Kb1 (20. h5 $2 Rxc6 21. Qe5 Rc5 $19) 20... Rxc6 $17) 19... Qxe6 {[%emt 0:00:06]} 20. Qxe6 {[%emt 0:08:15]} fxe6 {[%emt 0:00:12]} 21. Rhe1 {[%emt 0:05:51]} Rxf2 {[%emt 0:03:46]} 22. Rxe6 {[%emt 0:00:37]} Rf6 {[%emt 0:00:21]} 23. Rde1 {[%emt 0:01:17]} (23. Rxf6 $14 {was preferrable.} Bxf6 24. Bxg6) 23... Kf7 {[%emt 0:00:38]} 24. R6e4 {[%emt 0:02:51]} Rd7 {[%emt 0:03:40]} 25. Bb1 {[%emt 0:00:29]} Rfd6 {[%emt 0:02:12]} 26. Ba2+ {[%emt 0:04:01]} Kg7 {[%emt 0:00:12]} 27. Rf4 {[%emt 0:08:20]} Bf6 {[%emt 0:05:17] [#]} (27... Bd8 $11) 28. Ne4 $1 $16 {[%emt 0:00:43]} Be5 {[%emt 0:00:04] [#]} 29. Rff1 {[%emt 0:00:09]} Rd4 {[%emt 0:01:24]} 30. Nc5 $1 {[%emt 0:00:13][%csl LRa6,LRd7]} Re7 {[%emt 0:00:18]} 31. Ne6+ {[%emt 0:00:38]} (31. Nxa6 h5 $11) 31... Rxe6 {[%emt 0:00:24]} 32. Bxe6 {[%emt 0:00:06]} Rxh4 $2 {[%emt 0:00:03]} (32... h5 {is a better chance.} 33. Kb1 Bg3) 33. Rf7+ $18 {[%emt 0:00:28] White is clearly winning.} Kh8 {[%emt 0:00:07]} 34. Bd5 {[%emt 0:00:48]} Bg7 {[%emt 0:01:33]} (34... Bf4+ $142 35. Kb1 Ne5 36. Rxf4 Rxf4 37. Rxe5 Rf6 38. Re8+ Kg7 39. Rg8+ Kh7) 35. Re8+ {[%emt 0:00:28]} Kh7 {[%emt 0:00:06]} 36. Bxc6 {[%emt 0:00:23] Weighted Error Value: White=0.10 (very precise) /Black=0.37.  Mistake:       	White=2     	Black=4      Inaccurate:     	White=2     	Black=1      OK:         	White=11    	Black=7      Best:        	White=5     	Black=5      Strong:       	White=2     	Black=1} ({And not} 36. Rxg7+ Kxg7 37. Re6 (37. Bxc6 Rc4+ 38. Kd2 Rxc6 $17) 37... Nd4 38. Rxa6 Rg4 $11) 1-0